[Event "Titled Tuesday Blitz August 22 Early 2023"]
[White "Hambleton, Aman"]
[Black "Al-Tarboush, Ward"]
[WhiteFideId "2606577"]
[BlackFideId "7601450"]
[WhiteElo "2820"]
[BlackElo "2539"]
[Result "1-0"]
[Round "10"]
[TimeControl "180+1"]
[Date "2023.08.22"]
[WhiteClock "0:00:07"]
[BlackClock "0:01:43"]
[Board "59"]

1. d4 {[%clk 0:03:00]}  Nf6 {[%clk 0:02:59]} 2. Bf4 {[%clk 0:03:01]}  d5 {[%clk 0:02:58]} 3. e3 {[%clk 0:03:01]}  c5 {[%clk 0:02:59]} 4. c3 {[%clk 0:03:01]}  Nc6 {[%clk 0:02:59]} 5. Nd2 {[%clk 0:03:01]}  Bf5 {[%clk 0:02:58]} 6. Qb3 {[%clk 0:03:01]}  Qb6 {[%clk 0:02:57]} 7. dxc5 {[%clk 0:03:00]}  Qxc5 {[%clk 0:02:55]} 8. Qxb7 {[%clk 0:02:59]}  Rc8 {[%clk 0:02:55]} 9. Nb3 {[%clk 0:02:50]}  Qb6 {[%clk 0:02:53]} 10. Ba6 {[%clk 0:02:36]}  e5 {[%clk 0:02:38]} 11. Qxb6 {[%clk 0:02:20]}  axb6 {[%clk 0:02:39]} 12. Bxc8 {[%clk 0:02:19]}  Bxc8 {[%clk 0:02:40]} 13. Bg3 {[%clk 0:02:14]}  Ba6 {[%clk 0:02:41]} 14. Nf3 {[%clk 0:02:14]}  Bd6 {[%clk 0:02:38]} 15. Nbd4 {[%clk 0:02:10]}  exd4 {[%clk 0:02:10]} 16. Bxd6 {[%clk 0:02:10]}  dxc3 {[%clk 0:02:11]} 17. bxc3 {[%clk 0:02:06]}  Ne4 {[%clk 0:02:12]} 18. Bb4 {[%clk 0:01:53]}  Kd7 {[%clk 0:02:11]} 19. Nd2 {[%clk 0:01:46]}  Ne5 {[%clk 0:02:10]} 20. Nxe4 {[%clk 0:01:40]}  dxe4 {[%clk 0:02:11]} 21. O-O-O+ {[%clk 0:01:21]}  Bd3 {[%clk 0:02:09]} 22. f3 {[%clk 0:01:02]}  f5 {[%clk 0:02:07]} 23. Rhe1 {[%clk 0:00:31]}  Ra8 {[%clk 0:02:02]} 24. fxe4 {[%clk 0:00:27]}  fxe4 {[%clk 0:02:02]} 25. Rd2 {[%clk 0:00:28]}  Nc4 {[%clk 0:02:01]} 26. Rf2 {[%clk 0:00:28]}  Ke6 {[%clk 0:02:01]} 27. g4 {[%clk 0:00:11]}  Ra7 {[%clk 0:01:57]} 28. h4 {[%clk 0:00:11]}  g6 {[%clk 0:01:55]} 29. a3 {[%clk 0:00:10]}  Nxa3 {[%clk 0:01:52]} 30. Ra2 {[%clk 0:00:03]}  Nb5 {[%clk 0:01:53]} 31. Rxa7 {[%clk 0:00:04]}  Nxa7 {[%clk 0:01:54]} 32. Kd2 {[%clk 0:00:03]}  Nc6 {[%clk 0:01:54]} 33. Ra1 {[%clk 0:00:02]}  Ne5 {[%clk 0:01:55]} 34. g5 {[%clk 0:00:01]}  Nf3+ {[%clk 0:01:55]} 35. Kd1 {[%clk 0:00:02]}  Nxh4 {[%clk 0:01:56]} 36. Ra7 {[%clk 0:00:02]}  Ng2 {[%clk 0:01:55]} 37. Kd2 {[%clk 0:00:01]}  Nh4 {[%clk 0:01:56]} 38. Rxh7 {[%clk 0:00:01]}  Nf3+ {[%clk 0:01:57]} 39. Kd1 {[%clk 0:00:01]}  Nxg5 {[%clk 0:01:57]} 40. Rg7 {[%clk 0:00:02]}  Kf5 {[%clk 0:01:58]} 41. Rb7 {[%clk 0:00:01]}  Ne6 {[%clk 0:01:59]} 42. Rxb6 {[%clk 0:00:02]}  g5 {[%clk 0:02:00]} 43. Ke1 {[%clk 0:00:02]}  g4 {[%clk 0:02:00]} 44. Bd6 {[%clk 0:00:03]}  Ng5 {[%clk 0:01:59]} 45. Bf4 {[%clk 0:00:02]}  Nh3 {[%clk 0:01:59]} 46. Bg3 {[%clk 0:00:02]}  Ng5 {[%clk 0:01:58]} 47. Rc6 {[%clk 0:00:02]}  Nf3+ {[%clk 0:01:58]} 48. Kf2 {[%clk 0:00:03]}  Nd2 {[%clk 0:01:59]} 49. Rc5+ {[%clk 0:00:03]}  Kg6 {[%clk 0:01:58]} 50. Rc6+ {[%clk 0:00:03]}  Kf5 {[%clk 0:01:58]} 51. Rc5+ {[%clk 0:00:03]}  Kg6 {[%clk 0:01:59]} 52. Bf4 {[%clk 0:00:03]}  Nf3 {[%clk 0:01:59]} 53. Kg3 {[%clk 0:00:03]}  Be2 {[%clk 0:01:58]} 54. Rc6+ {[%clk 0:00:03]}  Kf5 {[%clk 0:01:58]} 55. c4 {[%clk 0:00:04]}  Nd2 {[%clk 0:01:52]} 56. c5 {[%clk 0:00:04]}  Nb3 {[%clk 0:01:52]} 57. Rc8 {[%clk 0:00:04]}  Ke6 {[%clk 0:01:53]} 58. c6 {[%clk 0:00:04]}  Ba6 {[%clk 0:01:42]} 59. Ra8 {[%clk 0:00:04]}  Nc5 {[%clk 0:01:43]} 60. c7 {[%clk 0:00:04]}  Kd7 {[%clk 0:01:40]} 61. Rd8+ {[%clk 0:00:04]}  Ke7 {[%clk 0:01:40]} 62. c8=Q {[%clk 0:00:05]}  Bxc8 {[%clk 0:01:41]} 63. Rxc8 {[%clk 0:00:06]}  Ne6 {[%clk 0:01:41]} 64. Ra8 {[%clk 0:00:06]}  Kf6 {[%clk 0:01:42]} 65. Ra6 {[%clk 0:00:06]}  Kf5 {[%clk 0:01:42]} 66. Rxe6 {[%clk 0:00:05]}  Kxe6 {[%clk 0:01:43]} 67. Kxg4 {[%clk 0:00:05]}  Kf6 {[%clk 0:01:43]} 68. Bg3 {[%clk 0:00:05]}  Ke6 {[%clk 0:01:44]} 69. Kf4 {[%clk 0:00:06]}  Kd5 {[%clk 0:01:44]} 70. Kf5 {[%clk 0:00:06]}  Kc4 {[%clk 0:01:43]} 71. Kxe4 {[%clk 0:00:07]} 1-0


[Site "https://www.chess.com"]

[Event "Titled Tuesday Blitz August 22 Early 2023"]
[White "Kosteniuk, Alexandra"]
[Black "Lehtosaari, Mauri"]
[WhiteFideId "4128125"]
[BlackFideId "501999"]
[WhiteElo "2736"]
[BlackElo "2527"]
[Result "1-0"]
[Round "10"]
[TimeControl "180+1"]
[Date "2023.08.22"]
[WhiteClock "0:00:09"]
[BlackClock "0:00:00"]
[Board "61"]

1. e4 {[%clk 0:03:00]}  d5 {[%clk 0:02:56]} 2. exd5 {[%clk 0:03:00]}  Qxd5 {[%clk 0:02:57]} 3. Nc3 {[%clk 0:03:01]}  Qd8 {[%clk 0:02:56]} 4. Nf3 {[%clk 0:03:00]}  Nf6 {[%clk 0:02:55]} 5. g3 {[%clk 0:02:59]}  Bg4 {[%clk 0:02:54]} 6. Bg2 {[%clk 0:02:59]}  c6 {[%clk 0:02:54]} 7. O-O {[%clk 0:02:58]}  e6 {[%clk 0:02:54]} 8. b3 {[%clk 0:02:56]}  Be7 {[%clk 0:02:53]} 9. Bb2 {[%clk 0:02:56]}  O-O {[%clk 0:02:53]} 10. h3 {[%clk 0:02:52]}  Bxf3 {[%clk 0:02:40]} 11. Bxf3 {[%clk 0:02:51]}  Nbd7 {[%clk 0:02:35]} 12. Bg2 {[%clk 0:02:51]}  Nb6 {[%clk 0:02:34]} 13. Ne2 {[%clk 0:02:46]}  a5 {[%clk 0:02:34]} 14. c4 {[%clk 0:02:35]}  a4 {[%clk 0:02:28]} 15. Qc2 {[%clk 0:02:35]}  Qd7 {[%clk 0:02:18]} 16. d4 {[%clk 0:02:31]}  axb3 {[%clk 0:02:05]} 17. axb3 {[%clk 0:02:31]}  Rxa1 {[%clk 0:02:06]} 18. Rxa1 {[%clk 0:02:30]}  Ra8 {[%clk 0:02:06]} 19. Rxa8+ {[%clk 0:02:29]}  Nxa8 {[%clk 0:02:07]} 20. Nf4 {[%clk 0:02:27]}  h6 {[%clk 0:02:05]} 21. Nd3 {[%clk 0:02:24]}  Qc7 {[%clk 0:01:57]} 22. Bc3 {[%clk 0:02:15]}  Qb8 {[%clk 0:01:42]} 23. Qa2 {[%clk 0:02:13]}  Nc7 {[%clk 0:01:39]} 24. Ne5 {[%clk 0:02:05]}  Nce8 {[%clk 0:01:31]} 25. b4 {[%clk 0:02:02]}  Nd6 {[%clk 0:01:27]} 26. d5 {[%clk 0:01:13]}  cxd5 {[%clk 0:01:17]} 27. cxd5 {[%clk 0:01:13]}  exd5 {[%clk 0:01:11]} 28. Bxd5 {[%clk 0:01:13]}  Nxd5 {[%clk 0:01:06]} 29. Qxd5 {[%clk 0:01:14]}  Qc7 {[%clk 0:01:05]} 30. Qd3 {[%clk 0:00:44]}  Bf6 {[%clk 0:00:56]} 31. Kg2 {[%clk 0:00:39]}  b5 {[%clk 0:00:42]} 32. f4 {[%clk 0:00:35]}  Bxe5 {[%clk 0:00:36]} 33. Bxe5 {[%clk 0:00:34]}  Qc6+ {[%clk 0:00:35]} 34. Kh2 {[%clk 0:00:25]}  Nc4 {[%clk 0:00:29]} 35. Bc3 {[%clk 0:00:24]}  Qe6 {[%clk 0:00:25]} 36. g4 {[%clk 0:00:20]}  f6 {[%clk 0:00:21]} 37. Kg3 {[%clk 0:00:19]}  Qc6 {[%clk 0:00:21]} 38. Qf3 {[%clk 0:00:14]}  Qd7 {[%clk 0:00:19]} 39. Qe4 {[%clk 0:00:13]}  Kf7 {[%clk 0:00:15]} 40. Bd4 {[%clk 0:00:12]}  Qe7 {[%clk 0:00:09]} 41. Qd5+ {[%clk 0:00:12]}  Qe6 {[%clk 0:00:08]} 42. Qxb5 {[%clk 0:00:11]}  Qe1+ {[%clk 0:00:08]} 43. Bf2 {[%clk 0:00:09]}  Qc3+ {[%clk 0:00:08]} 44. Kg2 {[%clk 0:00:09]}  Nd2 {[%clk 0:00:08]} 45. Qd5+ {[%clk 0:00:09]}  Ke8 {[%clk 0:00:00]} 46. Qe6+ {[%clk 0:00:09]} 1-0


[Site "https://www.chess.com"]

[Event "Titled Tuesday Blitz August 22 Early 2023"]
[White "Estrada Nieto, Julian"]
[Black "Weetik, Vjacheslav"]
[WhiteFideId "5101018"]
[BlackFideId "4153472"]
[WhiteElo "2525"]
[BlackElo "2731"]
[Result "0-1"]
[Round "10"]
[TimeControl "180+1"]
[Date "2023.08.22"]
[WhiteClock "0:00:04"]
[BlackClock "0:00:03"]
[Board "62"]

1. e4 {[%clk 0:03:00]}  c6 {[%clk 0:03:00]} 2. d4 {[%clk 0:03:00]}  d5 {[%clk 0:03:00]} 3. Nc3 {[%clk 0:03:00]}  dxe4 {[%clk 0:03:01]} 4. Nxe4 {[%clk 0:03:01]}  Bf5 {[%clk 0:03:02]} 5. Ng3 {[%clk 0:03:01]}  Bg6 {[%clk 0:03:02]} 6. h4 {[%clk 0:03:02]}  h6 {[%clk 0:03:03]} 7. Nf3 {[%clk 0:03:02]}  e6 {[%clk 0:03:03]} 8. h5 {[%clk 0:03:03]}  Bh7 {[%clk 0:03:04]} 9. Bd3 {[%clk 0:03:04]}  Bxd3 {[%clk 0:03:04]} 10. Qxd3 {[%clk 0:03:05]}  Nf6 {[%clk 0:03:05]} 11. Bd2 {[%clk 0:03:05]}  c5 {[%clk 0:03:06]} 12. O-O-O {[%clk 0:03:06]}  Nc6 {[%clk 0:03:06]} 13. Bc3 {[%clk 0:03:05]}  Qd5 {[%clk 0:03:05]} 14. Kb1 {[%clk 0:03:04]}  O-O-O {[%clk 0:02:56]} 15. Qe2 {[%clk 0:02:58]}  Be7 {[%clk 0:02:30]} 16. Ne5 {[%clk 0:02:47]}  Rhf8 {[%clk 0:02:20]} 17. dxc5 {[%clk 0:02:46]}  Qxc5 {[%clk 0:02:09]} 18. Nxf7 {[%clk 0:02:42]}  Rde8 {[%clk 0:01:38]} 19. Qxe6+ {[%clk 0:02:36]}  Kb8 {[%clk 0:01:39]} 20. Ne5 {[%clk 0:02:20]}  Ka8 {[%clk 0:01:13]} 21. Nxc6 {[%clk 0:02:12]}  bxc6 {[%clk 0:01:11]} 22. Qf5 {[%clk 0:01:39]}  Nd5 {[%clk 0:01:11]} 23. Bd4 {[%clk 0:01:26]}  Qa5 {[%clk 0:00:51]} 24. Qg6 {[%clk 0:01:16]}  Qb5 {[%clk 0:00:37]} 25. Rhe1 {[%clk 0:00:59]}  Rb8 {[%clk 0:00:37]} 26. b3 {[%clk 0:00:57]}  Bf6 {[%clk 0:00:25]} 27. Ne4 {[%clk 0:00:46]}  Bxd4 {[%clk 0:00:22]} 28. Rxd4 {[%clk 0:00:46]}  Rb6 {[%clk 0:00:19]} 29. Qd6 {[%clk 0:00:37]}  Rfb8 {[%clk 0:00:19]} 30. Qc5 {[%clk 0:00:32]}  Qa6 {[%clk 0:00:16]} 31. Red1 {[%clk 0:00:32]}  Nb4 {[%clk 0:00:14]} 32. a4 {[%clk 0:00:29]}  Nd5 {[%clk 0:00:11]} 33. Rxd5 {[%clk 0:00:29]}  cxd5 {[%clk 0:00:11]} 34. Qxd5+ {[%clk 0:00:29]}  Qb7 {[%clk 0:00:11]} 35. Nc5 {[%clk 0:00:28]}  Qxd5 {[%clk 0:00:10]} 36. Rxd5 {[%clk 0:00:29]}  Rc6 {[%clk 0:00:04]} 37. c3 {[%clk 0:00:22]}  Re8 {[%clk 0:00:04]} 38. b4 {[%clk 0:00:17]}  a5 {[%clk 0:00:03]} 39. Rf5 {[%clk 0:00:17]}  axb4 {[%clk 0:00:03]} 40. cxb4 {[%clk 0:00:17]}  Re2 {[%clk 0:00:02]} 41. Rf8+ {[%clk 0:00:09]}  Ka7 {[%clk 0:00:02]} 42. Rf7+ {[%clk 0:00:09]}  Ka8 {[%clk 0:00:02]} 43. Rf8+ {[%clk 0:00:10]}  Ka7 {[%clk 0:00:03]} 44. Rf7+ {[%clk 0:00:10]}  Kb8 {[%clk 0:00:03]} 45. Nd7+ {[%clk 0:00:08]}  Kc8 {[%clk 0:00:02]} 46. Nc5 {[%clk 0:00:06]}  Rd6 {[%clk 0:00:03]} 47. Rf8+ {[%clk 0:00:06]}  Kc7 {[%clk 0:00:02]} 48. Rf7+ {[%clk 0:00:06]}  Kc6 {[%clk 0:00:03]} 49. Rf8 {[%clk 0:00:04]}  Rd1# {[%clk 0:00:03]} 0-1


[Site "https://www.chess.com"]

[Event "Titled Tuesday Blitz August 22 Early 2023"]
[White "Ovchinnikov, Vsevolod"]
[Black "Korelskiy, Egor"]
[WhiteFideId "24176842"]
[BlackFideId "34329064"]
[WhiteElo "2652"]
[BlackElo "2517"]
[Result "1/2-1/2"]
[Round "10"]
[TimeControl "180+1"]
[Date "2023.08.22"]
[WhiteClock "0:00:08"]
[BlackClock "0:00:04"]
[Board "66"]

1. d4 {[%clk 0:03:00]}  d5 {[%clk 0:02:59]} 2. c4 {[%clk 0:03:01]}  e6 {[%clk 0:02:59]} 3. Nf3 {[%clk 0:03:01]}  c6 {[%clk 0:02:59]} 4. Nbd2 {[%clk 0:03:01]}  f5 {[%clk 0:02:55]} 5. g3 {[%clk 0:03:01]}  Nf6 {[%clk 0:02:55]} 6. Bg2 {[%clk 0:03:02]}  Bd6 {[%clk 0:02:56]} 7. O-O {[%clk 0:03:02]}  O-O {[%clk 0:02:57]} 8. Qc2 {[%clk 0:03:03]}  Qe7 {[%clk 0:02:56]} 9. a3 {[%clk 0:03:03]}  Nbd7 {[%clk 0:02:55]} 10. b4 {[%clk 0:03:03]}  b6 {[%clk 0:02:55]} 11. c5 {[%clk 0:02:50]}  Bc7 {[%clk 0:02:29]} 12. Bb2 {[%clk 0:02:44]}  Ba6 {[%clk 0:02:28]} 13. Rfe1 {[%clk 0:02:44]}  bxc5 {[%clk 0:02:26]} 14. bxc5 {[%clk 0:02:06]}  Ne4 {[%clk 0:02:25]} 15. e3 {[%clk 0:01:52]}  Rfb8 {[%clk 0:02:15]} 16. Bc3 {[%clk 0:01:46]}  Ndf6 {[%clk 0:02:12]} 17. h3 {[%clk 0:01:31]}  Qd8 {[%clk 0:01:57]} 18. Bb4 {[%clk 0:01:20]}  Ba5 {[%clk 0:01:49]} 19. Nb3 {[%clk 0:01:09]}  Bxb4 {[%clk 0:01:44]} 20. axb4 {[%clk 0:01:09]}  Qc8 {[%clk 0:01:25]} 21. Ra4 {[%clk 0:00:49]}  Bb5 {[%clk 0:01:21]} 22. Ra3 {[%clk 0:00:47]}  Bc4 {[%clk 0:01:20]} 23. Na5 {[%clk 0:00:17]}  Rxb4 {[%clk 0:01:16]} 24. Ne5 {[%clk 0:00:17]}  Bb5 {[%clk 0:00:20]} 25. Bf1 {[%clk 0:00:17]}  Bxf1 {[%clk 0:00:19]} 26. Rxf1 {[%clk 0:00:18]}  Qa6 {[%clk 0:00:14]} 27. Ra2 {[%clk 0:00:09]}  Qb5 {[%clk 0:00:06]} 28. Naxc6 {[%clk 0:00:09]}  Rb3 {[%clk 0:00:05]} 29. Na5 {[%clk 0:00:08]}  Rc3 {[%clk 0:00:05]} 30. Qb2 {[%clk 0:00:08]}  Qxb2 {[%clk 0:00:04]} 31. Rxb2 {[%clk 0:00:09]}  a6 {[%clk 0:00:02]} 32. Ra1 {[%clk 0:00:09]}  Nxf2 {[%clk 0:00:01]} 33. Kxf2 {[%clk 0:00:09]}  Ne4+ {[%clk 0:00:01]} 34. Kf3 {[%clk 0:00:09]}  Ng5+ {[%clk 0:00:01]} 35. Ke2 {[%clk 0:00:10]}  Ne4 {[%clk 0:00:01]} 36. g4 {[%clk 0:00:09]}  Ng3+ {[%clk 0:00:02]} 37. Kd2 {[%clk 0:00:09]}  Ne4+ {[%clk 0:00:02]} 38. Ke2 {[%clk 0:00:10]}  fxg4 {[%clk 0:00:03]} 39. hxg4 {[%clk 0:00:10]}  Rf8 {[%clk 0:00:03]} 40. Nd3 {[%clk 0:00:05]}  Ng3+ {[%clk 0:00:03]} 41. Kd2 {[%clk 0:00:06]}  Ne4+ {[%clk 0:00:03]} 42. Ke2 {[%clk 0:00:06]}  Ng3+ {[%clk 0:00:04]} 43. Kd2 {[%clk 0:00:07]}  Ne4+ {[%clk 0:00:04]} 44. Ke2 {[%clk 0:00:08]} 1/2-1/2


[Site "https://www.chess.com"]

[Event "Titled Tuesday Blitz August 22 Early 2023"]
[White "Kovalevsky, Stanislav"]
[Black "Chen, Ryo"]
[WhiteFideId "13508598"]
[BlackFideId "7003072"]
[WhiteElo "2508"]
[BlackElo "2627"]
[Result "0-1"]
[Round "10"]
[TimeControl "180+1"]
[Date "2023.08.22"]
[WhiteClock "0:00:12"]
[BlackClock "0:01:04"]
[Board "68"]

1. c4 {[%clk 0:02:28]}  Nf6 {[%clk 0:02:59]} 2. Nc3 {[%clk 0:02:29]}  g6 {[%clk 0:02:58]} 3. g3 {[%clk 0:02:29]}  Bg7 {[%clk 0:02:58]} 4. Bg2 {[%clk 0:02:30]}  O-O {[%clk 0:02:58]} 5. e4 {[%clk 0:02:30]}  d6 {[%clk 0:02:59]} 6. Nge2 {[%clk 0:02:31]}  c5 {[%clk 0:02:59]} 7. O-O {[%clk 0:02:32]}  Nc6 {[%clk 0:03:00]} 8. a3 {[%clk 0:02:32]}  Ne8 {[%clk 0:02:54]} 9. Rb1 {[%clk 0:02:31]}  a5 {[%clk 0:02:54]} 10. d3 {[%clk 0:02:28]}  Nc7 {[%clk 0:02:54]} 11. f4 {[%clk 0:02:19]}  Ne6 {[%clk 0:02:53]} 12. h3 {[%clk 0:02:19]}  Ned4 {[%clk 0:02:53]} 13. Nxd4 {[%clk 0:02:17]}  Nxd4 {[%clk 0:02:53]} 14. Ne2 {[%clk 0:02:14]}  Bd7 {[%clk 0:02:45]} 15. Kh2 {[%clk 0:02:08]}  b5 {[%clk 0:02:39]} 16. cxb5 {[%clk 0:01:58]}  Nxe2 {[%clk 0:02:35]} 17. Qxe2 {[%clk 0:01:58]}  Bxb5 {[%clk 0:02:36]} 18. b4 {[%clk 0:01:57]}  cxb4 {[%clk 0:02:33]} 19. axb4 {[%clk 0:01:58]}  a4 {[%clk 0:02:33]} 20. Bb2 {[%clk 0:01:54]}  Bxb2 {[%clk 0:02:29]} 21. Rxb2 {[%clk 0:01:54]}  Qb6 {[%clk 0:02:29]} 22. Ra1 {[%clk 0:01:51]}  Qd4 {[%clk 0:02:26]} 23. Ra3 {[%clk 0:01:51]}  Rac8 {[%clk 0:02:22]} 24. h4 {[%clk 0:01:48]}  Rc3 {[%clk 0:02:21]} 25. Rxc3 {[%clk 0:01:46]}  Qxc3 {[%clk 0:02:22]} 26. Qd2 {[%clk 0:01:43]}  Rc8 {[%clk 0:02:17]} 27. f5 {[%clk 0:01:29]}  a3 {[%clk 0:02:15]} 28. Ra2 {[%clk 0:01:26]}  Bxd3 {[%clk 0:02:08]} 29. Qg5 {[%clk 0:01:11]}  Bc4 {[%clk 0:02:04]} 30. fxg6 {[%clk 0:01:08]}  hxg6 {[%clk 0:02:02]} 31. Rf2 {[%clk 0:00:40]}  a2 {[%clk 0:02:01]} 32. h5 {[%clk 0:00:40]}  a1=Q {[%clk 0:01:51]} 33. hxg6 {[%clk 0:00:41]}  Qh8+ {[%clk 0:01:46]} 34. Bh3 {[%clk 0:00:38]}  f6 {[%clk 0:01:26]} 35. Qg4 {[%clk 0:00:32]}  Rf8 {[%clk 0:01:23]} 36. e5 {[%clk 0:00:29]}  Qxe5 {[%clk 0:01:20]} 37. Qxc4+ {[%clk 0:00:28]}  Kg7 {[%clk 0:01:21]} 38. Re2 {[%clk 0:00:24]}  Qf5 {[%clk 0:01:04]} 39. Rxe7+ {[%clk 0:00:20]}  Kxg6 {[%clk 0:01:04]} 40. Qh4 {[%clk 0:00:13]}  Qxh4 {[%clk 0:01:03]} 41. gxh4 {[%clk 0:00:13]}  Qf2+ {[%clk 0:01:04]} 42. Bg2 {[%clk 0:00:13]}  Qxh4+ {[%clk 0:01:04]} 43. Kg1 {[%clk 0:00:14]}  Qd4+ {[%clk 0:01:04]} 44. Kh1 {[%clk 0:00:12]}  Rh8+ {[%clk 0:01:04]} 0-1


[Site "https://www.chess.com"]

[Event "Titled Tuesday Blitz August 22 Early 2023"]
[White "Devaev, Alexander"]
[Black "HamedWafa4"]
[WhiteFideId "4169395"]
[WhiteElo "2505"]
[BlackElo "2616"]
[Result "1-0"]
[Round "10"]
[TimeControl "180+1"]
[Date "2023.08.22"]
[WhiteClock "0:00:13"]
[BlackClock "0:00:40"]
[Board "69"]

1. d4 {[%clk 0:02:57]}  Nf6 {[%clk 0:02:59]} 2. c4 {[%clk 0:02:57]}  e6 {[%clk 0:02:59]} 3. Nf3 {[%clk 0:02:56]}  Bb4+ {[%clk 0:02:58]} 4. Bd2 {[%clk 0:02:56]}  Bxd2+ {[%clk 0:02:59]} 5. Qxd2 {[%clk 0:02:57]}  O-O {[%clk 0:02:59]} 6. Nc3 {[%clk 0:02:57]}  d5 {[%clk 0:02:59]} 7. e3 {[%clk 0:02:56]}  b6 {[%clk 0:02:59]} 8. cxd5 {[%clk 0:02:50]}  Nxd5 {[%clk 0:02:59]} 9. Rc1 {[%clk 0:02:46]}  Bb7 {[%clk 0:02:58]} 10. Be2 {[%clk 0:02:46]}  Nd7 {[%clk 0:02:56]} 11. Nxd5 {[%clk 0:02:20]}  Bxd5 {[%clk 0:02:57]} 12. b4 {[%clk 0:02:20]}  Nf6 {[%clk 0:02:42]} 13. O-O {[%clk 0:02:19]}  Ne4 {[%clk 0:02:41]} 14. Qb2 {[%clk 0:02:18]}  Rc8 {[%clk 0:02:31]} 15. Ba6 {[%clk 0:02:09]}  Rb8 {[%clk 0:02:29]} 16. Bd3 {[%clk 0:01:33]}  Nd6 {[%clk 0:02:16]} 17. Qc2 {[%clk 0:01:27]}  Bxf3 {[%clk 0:02:14]} 18. gxf3 {[%clk 0:01:26]}  Qg5+ {[%clk 0:02:12]} 19. Kh1 {[%clk 0:01:26]}  Qh5 {[%clk 0:02:08]} 20. Be2 {[%clk 0:01:27]}  Rbc8 {[%clk 0:02:06]} 21. Qc6 {[%clk 0:01:26]}  g6 {[%clk 0:01:54]} 22. Rc2 {[%clk 0:01:24]}  e5 {[%clk 0:01:45]} 23. f4 {[%clk 0:01:09]}  Qh3 {[%clk 0:01:41]} 24. fxe5 {[%clk 0:01:01]}  Nf5 {[%clk 0:01:41]} 25. Qg2 {[%clk 0:01:02]}  Qh4 {[%clk 0:01:40]} 26. b5 {[%clk 0:00:48]}  Kh8 {[%clk 0:01:37]} 27. Rfc1 {[%clk 0:00:47]}  Qe7 {[%clk 0:01:32]} 28. a4 {[%clk 0:00:47]}  Qb4 {[%clk 0:01:31]} 29. Rc4 {[%clk 0:00:47]}  Qb2 {[%clk 0:01:31]} 30. R1c2 {[%clk 0:00:45]}  Qa1+ {[%clk 0:01:27]} 31. Qf1 {[%clk 0:00:45]}  Qa3 {[%clk 0:01:27]} 32. Bg4 {[%clk 0:00:37]}  f6 {[%clk 0:01:24]} 33. e4 {[%clk 0:00:25]}  h5 {[%clk 0:01:17]} 34. Qh3 {[%clk 0:00:16]}  Qa1+ {[%clk 0:00:54]} 35. Rc1 {[%clk 0:00:16]}  Qa2 {[%clk 0:00:54]} 36. exf5 {[%clk 0:00:16]}  Kg7 {[%clk 0:00:55]} 37. fxg6 {[%clk 0:00:16]}  Rh8 {[%clk 0:00:55]} 38. Bf3 {[%clk 0:00:15]}  Qxf2 {[%clk 0:00:52]} 39. Qg2 {[%clk 0:00:14]}  Qe3 {[%clk 0:00:51]} 40. Rxc7+ {[%clk 0:00:14]}  Rxc7 {[%clk 0:00:50]} 41. Rxc7+ {[%clk 0:00:15]}  Kh6 {[%clk 0:00:50]} 42. g7 {[%clk 0:00:11]}  Rg8 {[%clk 0:00:50]} 43. exf6 {[%clk 0:00:12]}  Qxd4 {[%clk 0:00:48]} 44. Rc1 {[%clk 0:00:09]}  Qxf6 {[%clk 0:00:47]} 45. Rd1 {[%clk 0:00:10]}  Rxg7 {[%clk 0:00:47]} 46. Qd2+ {[%clk 0:00:10]}  Kh7 {[%clk 0:00:39]} 47. Be4+ {[%clk 0:00:10]}  Kh8 {[%clk 0:00:40]} 48. Qd8+ {[%clk 0:00:10]}  Qxd8 {[%clk 0:00:39]} 49. Rxd8+ {[%clk 0:00:10]}  Rg8 {[%clk 0:00:40]} 50. Rxg8+ {[%clk 0:00:11]}  Kxg8 {[%clk 0:00:41]} 51. Kg2 {[%clk 0:00:11]}  Kf7 {[%clk 0:00:41]} 52. Kg3 {[%clk 0:00:11]}  Kf6 {[%clk 0:00:42]} 53. Kh4 {[%clk 0:00:12]}  Ke5 {[%clk 0:00:43]} 54. Bg6 {[%clk 0:00:11]}  Kd4 {[%clk 0:00:44]} 55. Bxh5 {[%clk 0:00:12]}  Kc4 {[%clk 0:00:45]} 56. Bd1 {[%clk 0:00:13]}  Kb4 {[%clk 0:00:40]} 57. Kg5 {[%clk 0:00:13]} 1-0


[Site "https://www.chess.com"]

[Event "Titled Tuesday Blitz August 22 Early 2023"]
[White "Arat, Ufuk Sezen"]
[Black "Yurasova, Daria"]
[WhiteFideId "6309089"]
[BlackFideId "34146919"]
[WhiteElo "2606"]
[BlackElo "2502"]
[Result "1-0"]
[Round "10"]
[TimeControl "180+1"]
[Date "2023.08.22"]
[WhiteClock "0:01:01"]
[BlackClock "0:00:00"]
[Board "71"]

1. e4 {[%clk 0:02:58]}  e5 {[%clk 0:02:59]} 2. Nf3 {[%clk 0:02:58]}  Nc6 {[%clk 0:03:00]} 3. c3 {[%clk 0:02:58]}  d5 {[%clk 0:02:54]} 4. Qa4 {[%clk 0:02:57]}  Nf6 {[%clk 0:02:48]} 5. Nxe5 {[%clk 0:02:53]}  Bd6 {[%clk 0:02:47]} 6. Nxc6 {[%clk 0:02:52]}  bxc6 {[%clk 0:02:47]} 7. exd5 {[%clk 0:02:51]}  O-O {[%clk 0:02:47]} 8. Be2 {[%clk 0:02:47]}  Re8 {[%clk 0:02:40]} 9. d3 {[%clk 0:02:46]}  Nxd5 {[%clk 0:02:33]} 10. Nd2 {[%clk 0:02:44]}  Nf4 {[%clk 0:02:20]} 11. Ne4 {[%clk 0:02:44]}  Nxe2 {[%clk 0:02:18]} 12. Be3 {[%clk 0:02:36]}  Nf4 {[%clk 0:02:11]} 13. Nxd6 {[%clk 0:02:34]}  Qxd6 {[%clk 0:02:08]} 14. O-O-O {[%clk 0:02:27]}  Nxd3+ {[%clk 0:01:57]} 15. Kb1 {[%clk 0:02:25]}  Bf5 {[%clk 0:01:57]} 16. Ka1 {[%clk 0:02:25]}  Qe5 {[%clk 0:01:27]} 17. Qxc6 {[%clk 0:02:18]}  Qa5 {[%clk 0:01:12]} 18. Qc4 {[%clk 0:01:53]}  Ne5 {[%clk 0:01:05]} 19. Qd5 {[%clk 0:01:42]}  Qxd5 {[%clk 0:01:01]} 20. Rxd5 {[%clk 0:01:43]}  Be4 {[%clk 0:01:02]} 21. Rc5 {[%clk 0:01:41]}  Ng4 {[%clk 0:00:57]} 22. Bd4 {[%clk 0:01:34]}  Bxg2 {[%clk 0:00:52]} 23. Rg1 {[%clk 0:01:35]}  Bf3 {[%clk 0:00:39]} 24. h3 {[%clk 0:01:29]}  c6 {[%clk 0:00:14]} 25. hxg4 {[%clk 0:01:26]}  Re2 {[%clk 0:00:14]} 26. a4 {[%clk 0:01:22]}  Rae8 {[%clk 0:00:13]} 27. Ka2 {[%clk 0:01:20]}  Bd5+ {[%clk 0:00:13]} 28. c4 {[%clk 0:01:19]}  Bf3 {[%clk 0:00:10]} 29. Rg3 {[%clk 0:01:18]}  Be4 {[%clk 0:00:08]} 30. f3 {[%clk 0:01:14]}  Bc2 {[%clk 0:00:08]} 31. Rxc6 {[%clk 0:01:11]}  Bxa4 {[%clk 0:00:07]} 32. Ra6 {[%clk 0:01:11]}  Bc2 {[%clk 0:00:06]} 33. f4 {[%clk 0:01:12]}  Re1 {[%clk 0:00:05]} 34. c5 {[%clk 0:01:07]}  h6 {[%clk 0:00:05]} 35. c6 {[%clk 0:01:07]}  Rc8 {[%clk 0:00:05]} 36. Rc3 {[%clk 0:01:05]}  Be4 {[%clk 0:00:05]} 37. c7 {[%clk 0:01:05]}  Bd5+ {[%clk 0:00:03]} 38. b3 {[%clk 0:01:04]}  Re2+ {[%clk 0:00:03]} 39. Ka3 {[%clk 0:01:04]}  Re1 {[%clk 0:00:03]} 40. Rd6 {[%clk 0:01:02]}  Be6 {[%clk 0:00:03]} 41. f5 {[%clk 0:01:01]}  Bxf5 {[%clk 0:00:02]} 42. gxf5 {[%clk 0:01:01]}  h5 {[%clk 0:00:00]} 43. Rd8+ {[%clk 0:01:01]} 1-0


[Site "https://www.chess.com"]